bitfinex/quotes_ETHUSD_20250604
["timestamp","ask_amount","ask_price","bid_price","bid_amount"]
[1749001790177,2.32526746,2610.7,2610.5,1.668]
[1749001794947,1.59283538,2610.8,2610.5,1.668]
[1749001800377,2.32685379,2610.9,2610.5,1.668]
[1749001800378,0.00158633,2610.9,2610.5,1.668]
[1749001806672,2.32526746,2610.8,2610.5,1.668]
[1749001807248,1.297,2610.7,2610.5,1.668]
[1749001807462,1.297,2610.7,2610.4,8.263]
[1749001807463,2.32526746,2610.6,2610.4,8.263]
[1749001807748,2.32526746,2610.6,2610.5,1.666]
[1749001808378,1.297,2610.7,2610.5,1.666]
[1749001809354,1.36648633,2610.9,2610.5,1.666]
[1749001809552,0.00158633,2610.9,2610.5,1.7223]
[1749001811482,2.32526746,2610.8,2610.4,8.263]
[1749001811717,2.32526746,2610.8,2610.5,1.666]
[1749001812687,0.00158633,2610.9,2610.5,1.666]
[1749001812688,2.32526746,2610.6,2610.5,1.666]
[1749001815534,1.2618,2610.7,2610.5,1.666]
[1749001815719,0.00158633,2610.9,2610.5,2.7152]
[1749001816296,0.00158633,2610.9,2610.5,1.7223]
[1749001819217,0.00158633,2610.9,2610.5,9.7223]
[1749001819517,0.00158633,2610.9,2610.6,0.0563]
[1749001822040,0.00158633,2610.9,2610.7,9.93]
[1749001822242,0.00158633,2610.9,2610.8,6.322]
[1749001825255,0.00158633,2610.9,2610.7,9.93]
[1749001825464,0.00158633,2610.9,2610.7,16.252]
[1749001827528,0.00158633,2610.9,2610.8,9.929]
[1749001828653,0.00158633,2610.9,2610.8,16.25]
[1749001843969,0.00158633,2610.9,2610.8,28.8972476]
[1749001844674,0.00158633,2610.9,2610.8,23.837564]
[1749001845561,0.00158633,2610.9,2610.8,31.837564]
[1749001846145,0.00158633,2610.9,2610.8,24.246]
[1749001846372,0.00158633,2610.9,2610.8,24.243]
[1749001846872,0.00158633,2610.9,2610.8,16.263]
[1749001847036,0.00158633,2610.9,2610.8,24.243]
[1749001847534,0.00158633,2610.9,2610.8,17.926]
[1749001847735,0.00158633,2610.9,2610.8,24.243]
[1749001852189,0.00158633,2610.9,2610.8,34.243]
[1749001852394,0.00158633,2610.9,2610.8,24.243]
[1749001853679,0.00158633,2610.9,2610.8,26.337827]
[1749001853857,0.00158633,2610.9,2610.8,27.146967]
[1749001854051,0.00158633,2610.9,2610.8,24.243]
[1749001856712,0.00158633,2610.9,2610.8,16.263]
[1749001857085,0.00158633,2610.9,2610.8,24.241]
[1749001858707,0.00158633,2610.9,2610.8,24.261]
[1749001859815,0.00158633,2610.9,2610.8,34.261]
[1749001859978,0.00158633,2610.9,2610.8,28.027673]
[1749001860305,0.00158633,2610.9,2610.8,24.261]
[1749001860611,0.00158633,2610.9,2610.8,16.283]
[1749001860805,0.00158633,2610.9,2610.8,24.238]
[1749001862309,0.00158633,2610.9,2610.8,17.923]
[1749001862511,0.00158633,2610.9,2610.8,24.237]
[1749001863490,0.00158633,2610.9,2610.8,17.923]
[1749001863684,0.00158633,2610.9,2610.8,24.237]
[1749001865886,0.00158633,2610.9,2610.8,24.257]
[1749001867686,0.00158633,2610.9,2610.8,16.256]
[1749001869287,0.00158633,2610.9,2610.8,16.255]
[1749001869626,0.00158633,2610.9,2610.8,24.255]
[1749001876531,0.00158633,2610.9,2610.8,24.254]
[1749001877340,0.00158633,2610.9,2610.8,17.942]
[1749001877545,0.00158633,2610.9,2610.8,24.254]
[1749001878672,1.36878633,2610.9,2610.8,0.02]
[1749001878961,4.06345917,2610.9,2610.8,1.66]
[1749001879278,3.69405379,2610.9,2610.8,1.66]
[1749001879760,4.24405379,2610.9,2610.8,1.66]
[1749001880061,1.91878633,2610.9,2610.8,1.66]
[1749001880254,3.69405379,2610.9,2610.8,1.66]
[1749001880440,1.73819171,2610.9,2610.8,1.66]
[1749001880638,1.36878633,2610.9,2610.8,1.66]
[1749001881463,3.69405379,2610.9,2610.8,1.66]
[1749001886877,1.36878633,2610.9,2610.8,1.66]
[1749001887239,0.00158633,2610.9,2610.8,1.66]
[1749001888583,3.61625379,2610.9,2610.8,1.66]
[1749001888738,3.97787917,2610.9,2610.1,8.0]
[1749001888940,2.32526746,2610.6,2610.2,1.66]
[1749001889135,1.2894,2610.5,2610.2,1.66]
[1749001889739,2.32526746,2610.4,2610.3,1.66]
[1749001893083,2.32526746,2610.4,2609.3,2.32526746]
[1749001893283,2.32526746,2610.4,2609.5,10.0]
[1749001893681,2.32526746,2610.4,2609.4,0.35404168]
[1749001893977,2.32526746,2610.4,2609.6,8.02]
[1749001894338,2.32526746,2610.4,2609.7,6.311]
[1749001895204,2.32526746,2610.4,2609.8,9.922]
[1749001896483,2.68673421,2610.4,2609.8,9.922]
[1749001896680,1.258,2610.3,2609.8,16.233]
[1749001899668,1.236,2609.9,2609.8,8.264]
[1749001899896,1.236,2609.9,2609.8,9.922]
[1749001900250,1.59212675,2609.9,2609.8,9.922]
[1749001901248,1.236,2609.9,2609.8,9.922]
[1749001901448,1.236,2610.2,2609.8,9.922]
[1749001903012,3.56126746,2610.2,2609.8,9.922]
[1749001908271,2.32526746,2610.0,2609.8,9.922]
[1749001910366,2.68139421,2610.0,2609.8,9.922]
[1749001910565,1.3618,2609.9,2609.8,9.922]
[1749001915584,0.35612675,2610.0,2609.8,9.922]
[1749001915809,1.2611,2610.1,2609.8,9.922]
[1749001917509,1.2611,2610.1,2609.8,1.658]
[1749001918009,2.32526746,2610.0,2609.9,1.658]
[1749001918972,3.62926746,2610.0,2609.9,1.658]
[1749001924219,1.304,2610.0,2609.9,1.655]
[1749001924449,3.62926746,2610.0,2609.9,1.655]
[1749001925252,2.32526746,2610.2,2609.9,1.655]
[1749001925550,1.2853,2610.3,2609.9,1.655]
[1749001926332,2.32526746,2610.2,2609.9,1.655]
[1749001928517,3.64076746,2610.0,2609.5,6.307]
[1749001928716,0.36407675,2609.9,2609.6,1.655]
[1749001928957,3.64076746,2610.0,2609.6,1.655]
[1749001932364,2.32526746,2610.0,2609.6,1.655]
[1749001933755,2.32526746,2609.8,2609.4,0.3774083]
[1749001933939,2.32526746,2609.8,2609.5,1.655]
[1749001935398,1.2815,2609.9,2609.5,1.655]
[1749001941404,2.32526746,2610.2,2609.5,1.655]
[1749001941565,3.65536746,2610.2,2609.5,11.655]
[1749001941902,3.65536746,2610.2,2609.5,1.655]
[1749001941903,1.3301,2610.2,2609.5,1.655]
[1749001942062,3.56686746,2610.4,2609.6,10.0]
[1749001942265,3.92355421,2610.4,2609.6,10.0]
[1749001943003,1.59828675,2610.4,2609.6,10.0]
[1749001943270,1.24318633,2610.9,2609.8,20.0]
[1749001943424,0.00158633,2610.9,2610.0,10.0]
[1749001943582,0.00158633,2610.9,2610.2,20.0]
[1749001943775,0.00158633,2610.9,2610.2,10.0]
[1749001944178,0.00158633,2610.9,2610.3,10.0]
[1749001944823,0.00158633,2610.9,2610.4,10.0]
[1749001945323,0.00158633,2610.9,2610.5,10.0]
[1749001945487,0.00158633,2610.9,2610.7,10.0]
[1749001945678,0.00158633,2610.9,2610.8,1.655]
[1749001950523,2.32685379,2610.9,2610.8,0.3777895]
[1749001950687,3.63825379,2610.9,2610.8,1.655]
[1749001953029,1.31298633,2610.9,2610.8,1.655]
[1749001954329,1.31298633,2610.9,2610.6,8.266]
[1749001954533,1.31298633,2610.9,2610.7,1.652]
[1749001955435,0.00158633,2610.9,2610.7,1.652]
[1749001964964,0.00158633,2610.9,2610.1,3.83124525]
[1749001965177,1.3017,2610.2,2609.4,0.37737004]
[1749001965341,2.32526746,2609.6,2609.4,0.37737004]
[1749001965544,3.54736746,2609.6,2609.4,0.37737004]
[1749001965869,3.54736746,2609.6,2609.3,1.652]
[1749001966024,2.32526746,2609.4,2609.3,1.652]
[1749001966426,1.2221,2609.6,2608.8,0.35408001]
[1749001966624,2.32526746,2609.5,2608.9,7.951]
[1749001966869,2.32526746,2609.5,2609.0,2.4471]
[1749001967066,2.32526746,2609.3,2608.4,10.0]
[1749001967280,2.32526746,2609.3,2608.8,6.299]
[1749001967628,1.2221,2609.6,2608.9,10.0]
[1749001967828,3.59856746,2609.8,2609.0,7.951]
[1749001969066,2.32526746,2609.6,2609.1,6.3]
[1749001969427,2.32526746,2609.8,2609.1,6.3]
[1749001970366,2.32526746,2610.0,2609.2,20.0]
[1749001970561,2.32526746,2610.0,2609.2,10.0]
[1749001970964,1.325,2610.1,2609.2,10.0]
[1749001971166,3.59816746,2610.7,2609.8,3.83171124]
[1749001971383,3.59816746,2610.7,2609.9,9.917]
[1749001971592,2.32526746,2610.5,2610.0,8.0]
[1749001971874,2.32526746,2610.5,2610.0,14.3]
[1749001972673,2.32526746,2610.3,2610.0,8.0]
[1749001972996,2.32526746,2610.1,2610.0,8.0]
[1749001973302,4.83043789,2610.5,2610.0,9.652]
[1749001974043,1.2729,2610.7,2610.0,9.652]
[1749001978389,1.2729,2610.7,2610.0,14.3]
[1749001978599,1.2729,2610.7,2610.1,1.652]
[1749001978781,1.88339242,2610.7,2610.1,1.652]
[1749001978982,1.88339242,2610.7,2610.2,1.652]
[1749001980403,1.2729,2610.7,2610.2,1.652]
[1749001982285,0.00158633,2610.9,2610.2,1.652]
[1749001983921,4.83202422,2610.9,2610.3,1.652]
[1749001984098,1.2838,2610.8,2610.3,1.652]
[1749001986523,4.83043789,2610.6,2610.3,1.652]
[1749001986723,1.2838,2610.8,2610.3,1.652]
[1749001986900,0.61158242,2610.7,2610.3,1.652]
[1749001988132,1.227,2610.5,2610.3,1.652]
[1749001990125,1.82248242,2610.7,2610.3,1.652]
[1749001990333,1.2109,2610.7,2610.4,1.65]
[1749001990532,1.2109,2610.7,2610.5,1.65]
[1749001990733,1.21248633,2610.9,2610.6,1.65]
[1749001990935,1.21248633,2610.9,2609.8,8.265]
[1749001990936,0.00158633,2610.9,2610.7,1.65]
[1749001991228,0.00158633,2610.9,2610.8,1.65]
[1749001992521,0.00158633,2610.9,2610.0,10.0]
[1749001992720,0.00158633,2610.9,2610.2,5.468014]
[1749001992920,0.00158633,2610.9,2610.4,10.0]
[1749001993186,0.00158633,2610.9,2610.1,7.948]
[1749001993187,0.00158633,2610.9,2610.2,10.0]
[1749001993392,0.00158633,2610.9,2610.4,10.0]
[1749001993634,0.00158633,2610.9,2610.3,2.937828]
[1749001993934,0.00158633,2610.9,2610.2,8.097505]
[1749001994123,0.00158633,2610.9,2610.4,6.298]
[1749001995133,0.00158633,2610.9,2610.5,1.65]
[1749001995308,0.00158633,2610.9,2610.6,1.65]
[1749001997232,0.00158633,2610.9,2610.3,8.264]
[1749001997434,1.23938633,2610.9,2610.4,1.65]
[1749001999122,0.00158633,2610.9,2610.4,1.65]
[1749002000353,0.00158633,2610.9,2610.5,20.0]
[1749002000651,0.00158633,2610.9,2610.5,10.0]
[1749002001251,0.00158633,2610.9,2610.5,0.95142683]
[1749002001452,0.00158633,2610.9,2610.5,10.0]
[1749002001653,0.00158633,2610.9,2610.5,3.841566]
[1749002001842,0.00158633,2610.9,2610.4,1.65]
[1749002003385,0.00158633,2610.9,2610.5,20.0]
[1749002003546,0.00158633,2610.9,2610.5,10.0]
[1749002008756,0.00158633,2610.9,2610.7,10.0]
[1749002008946,0.00158633,2610.9,2610.6,6.296]
[1749002013711,0.00158633,2610.9,2610.5,10.0]
[1749002013865,0.00158633,2610.9,2610.7,6.295]
[1749002015363,0.00158633,2610.9,2610.8,1.65]
[1749002016493,1.21798633,2610.9,2610.5,10.0]
[1749002016657,1.21798633,2610.9,2610.8,1.648]
[1749002018494,1.21798633,2610.9,2610.5,10.0]
[1749002018846,2.32062021,2610.8,2610.6,1.648]
[1749002019046,1.21798633,2610.9,2610.6,1.648]
[1749002019339,1.57184698,2610.9,2610.6,1.648]
[1749002020837,1.21798633,2610.9,2610.6,1.648]
[1749002021000,0.00158633,2610.9,2610.6,1.648]
[1749002027856,0.00158633,2610.9,2610.7,8.263]
[1749002030464,0.00158633,2610.9,2610.8,1.648]
[1749002031751,0.00158633,2610.9,2610.8,7.941]
[1749002033771,0.00158633,2610.9,2610.8,1.648]
[1749002033976,0.00158633,2610.9,2610.8,7.941]
[1749002034345,1.30328633,2610.9,2610.8,1.648]
[1749002034547,1.30328633,2610.9,2610.5,6.293]
[1749002035099,2.32062021,2610.8,2610.4,6.293]
[1749002035265,2.32062021,2610.8,2610.5,1.648]
[1749002035907,1.66567698,2610.9,2610.5,11.648]
[1749002036045,1.30328633,2610.9,2610.5,11.648]
[1749002036247,3.62390654,2610.9,2610.5,11.648]
[1749002038776,3.62390654,2610.9,2610.5,10.0]
[1749002039107,3.62390654,2610.9,2610.6,1.648]
[1749002040312,1.30328633,2610.9,2610.6,1.648]
[1749002041112,0.00158633,2610.9,2610.6,1.648]
[1749002042508,0.02,2611.9,2610.6,1.648]
[1749002042509,1.3307,2611.7,2611.1,3.82966399]
[1749002042711,3.67132021,2611.9,2611.2,7.94]
[1749002042872,3.67132021,2611.9,2611.2,8.89572036]
[1749002043968,2.32062021,2611.5,2611.2,0.95572036]
[1749002044286,1.2537,2611.6,2611.3,1.648]
[1749002048916,1.2537,2611.6,2611.3,2.03893029]
[1749002051099,2.32062021,2611.7,2611.3,2.03893029]
[1749002052503,2.68335223,2611.7,2611.3,2.03893029]
[1749002052902,1.2867,2611.8,2611.3,2.03893029]
[1749002053241,0.02,2611.9,2611.4,10.0]
[1749002053385,0.02,2611.9,2611.6,3.82894602]
[1749002053583,0.02,2611.9,2611.7,22.08990436]
[1749002053787,0.02,2611.9,2611.8,6.447877]
[1749002055190,0.02,2611.9,2611.8,14.447877]
[1749002055828,0.02,2611.9,2611.8,8.0]
[1749002056056,0.02,2611.9,2611.8,12.531507]
[1749002058914,0.02,2611.9,2611.8,4.3749585]
[1749002059440,0.02,2611.9,2611.8,5.63855435]
[1749002063725,0.02,2611.9,2611.8,13.63855435]
[1749002069030,0.02,2611.9,2611.8,6.46794561]
[1749002069232,0.02,2611.9,2611.8,16.46794561]
[1749002070771,0.02,2611.9,2611.8,20.29672269]
[1749002071127,0.02,2611.9,2611.8,16.46794561]
[1749002071327,0.02,2611.9,2611.8,24.39994561]
[1749002071861,0.02,2611.9,2611.8,1.646]
[1749002072062,1.3037,2611.9,2611.8,1.646]
[1749002076495,3.62432021,2611.9,2611.8,1.646]
[1749002076699,3.98675223,2611.9,2611.8,1.646]
[1749002078174,1.66613202,2611.9,2611.8,1.646]
[1749002085249,0.38243202,2611.9,2611.8,1.644]
[1749002085406,1.71793202,2611.9,2611.8,1.644]
[1749002087845,1.3234,2611.8,2611.2,8.26]
[1749002088046,1.3234,2611.7,2611.6,1.644]
[1749002089319,3.57582021,2611.7,2611.6,1.644]
[1749002090129,4.12582021,2611.7,2611.6,1.644]
[1749002090308,4.58078775,2611.7,2611.6,1.644]
[1749002091569,1.2353,2611.5,2610.2,8.73133]
[1749002091767,2.32062021,2611.0,2610.2,8.73133]
[1749002091922,2.32062021,2611.0,2610.3,10.0]
[1749002092123,2.32062021,2611.0,2610.2,0.38488744]
[1749002092124,2.32062021,2611.0,2610.2,10.38488744]
[1749002092426,2.32062021,2611.0,2610.4,2.48888]
[1749002092610,1.2353,2611.1,2610.6,10.0]
[1749002092815,3.55732021,2611.5,2610.8,10.0]
[1749002093050,3.55732021,2611.7,2610.9,10.0]
[1749002093213,3.55732021,2611.7,2610.9,8.245909]
[1749002093414,3.55732021,2611.7,2610.8,10.0]
[1749002094562,3.55732021,2611.7,2610.7,10.0]
[1749002095135,3.55732021,2611.7,2610.8,9.905]
[1749002095364,2.32062021,2611.5,2610.9,3.6684]
[1749002095564,2.32062021,2611.5,2611.0,10.0]
[1749002095759,2.32062021,2611.5,2610.9,6.699889]
[1749002096033,2.32062021,2611.5,2610.9,6.606227]
[1749002096229,2.32062021,2611.5,2611.0,10.0]
[1749002096430,2.32062021,2611.5,2610.9,2.929397]
[1749002096632,2.32062021,2611.5,2611.0,10.0]
[1749002096836,3.65612021,2611.3,2611.1,1.644]
[1749002097880,2.32062021,2611.3,2611.1,1.644]
[1749002098344,3.65612021,2611.5,2611.1,1.644]
[1749002098746,3.65612021,2611.5,2611.1,7.928]
[1749002099245,2.32062021,2611.3,2611.2,1.644]
[1749002108380,1.3355,2611.5,2611.2,1.644]
[1749002108583,1.3355,2611.5,2611.3,1.642]
[1749002108755,0.55,2611.7,2611.3,1.642]
[1749002109090,1.7971,2611.4,2611.3,1.642]
[1749002109595,4.11772021,2611.4,2611.3,1.642]
[1749002109780,4.52949223,2611.4,2611.3,1.642]
[1749002111068,1.29,2611.2,2610.8,9.903]
[1749002111396,3.61062021,2610.9,2610.8,9.903]
[1749002111697,4.25874425,2610.9,2610.8,9.903]
[1749002112619,1.93812404,2610.9,2610.8,9.903]
[1749002113322,2.48812404,2610.9,2610.8,9.903]
[1749002115219,2.48812404,2610.9,2610.8,1.642]
[1749002115578,0.55,2610.6,2610.3,1.642]
[1749002115783,3.62902021,2610.4,2610.3,1.642]
[1749002116037,4.04692223,2610.4,2610.3,1.642]
[1749002118638,1.72630202,2610.4,2610.3,1.642]
[1749002118837,1.3084,2610.4,2610.3,1.642]
[1749002122386,1.8584,2610.4,2610.3,1.642]
[1749002127358,1.3084,2610.4,2610.3,1.642]
[1749002139795,1.3532,2610.6,2610.3,1.642]
[1749002142878,0.55,2610.8,2610.3,1.642]
[1749002143210,0.55,2610.2,2609.9,1.641]
[1749002143519,5.19124042,2610.0,2609.9,1.641]
[1749002143886,6.52604042,2610.0,2609.9,1.641]
[1749002144062,7.17864446,2610.0,2609.9,1.641]
[1749002150667,7.17864446,2610.0,2609.6,1.641]
[1749002150968,2.32062021,2609.7,2609.6,1.641]
[1749002151169,3.70192021,2609.7,2609.6,1.641]
[1749002152324,4.25192021,2609.7,2609.6,1.641]
[1749002152617,4.67711223,2609.7,2609.6,1.641]
[1749002160531,3.29581223,2609.7,2609.6,1.641]
[1749002160695,2.32062021,2609.7,2609.6,1.641]
[1749002161422,2.32062021,2609.7,2608.9,10.0]
[1749002161599,2.32062021,2609.7,2609.0,7.922]
[1749002164421,2.32062021,2609.5,2609.0,7.922]
[1749002165695,2.32062021,2609.5,2609.1,1.641]
[1749002167741,2.32062021,2609.5,2608.4,10.0]
[1749002169071,2.32062021,2609.5,2608.6,19.080186]
[1749002169187,2.32062021,2609.3,2608.5,6.28]
[1749002169393,2.32062021,2609.3,2608.7,10.0]
[1749002169630,2.32062021,2609.3,2608.5,0.38229553]
[1749002169832,2.32062021,2609.1,2608.0,10.96115203]
[1749002170004,2.32062021,2609.1,2608.6,6.28]
[1749002170636,2.32062021,2609.1,2608.0,4.79546331]
[1749002170836,2.32062021,2609.1,2608.1,25.099753]
[1749002171036,2.32062021,2609.1,2608.3,10.0]
[1749002171242,2.32062021,2609.3,2608.5,10.0]
[1749002171420,2.32062021,2609.7,2608.6,10.0]
[1749002172721,1.2868,2609.8,2608.6,10.0]
[1749002172722,2.32062021,2609.5,2608.6,10.0]
[1749002173057,2.32062021,2609.5,2608.4,10.0]
[1749002173224,2.32062021,2609.5,2608.4,13.83375859]
[1749002173416,2.32062021,2609.5,2608.5,10.0]
[1749002175056,2.32062021,2609.5,2608.7,10.0]
[1749002175350,2.32062021,2609.5,2608.8,9.907]
[1749002180050,2.32062021,2609.5,2608.8,8.268]
[1749002180264,2.32062021,2609.5,2608.9,1.639]
[1749002184031,3.63982021,2609.5,2608.9,1.639]
[1749002184824,3.63982021,2609.5,2608.8,8.268]
[1749002185023,3.63982021,2609.5,2609.0,1.639]
[1749002192997,3.63982021,2609.5,2609.1,1.639]
[1749002198713,3.63982021,2609.5,2609.2,1.639]
[1749002198915,4.00380223,2609.5,2609.2,1.639]
[1749002201005,4.00380223,2609.5,2609.3,1.636]
[1749002205441,4.00380223,2609.5,2609.4,1.636]
[1749002208843,3.63982021,2609.5,2609.4,1.636]
[1749002210149,1.3727,2609.8,2609.4,1.636]
[1749002210305,0.02,2609.9,2609.4,1.636]
[1749002210504,2.34062021,2609.9,2609.4,1.636]
[1749002210955,2.34062021,2609.9,2609.5,1.636]
[1749002211130,2.34062021,2609.9,2609.6,1.636]
[1749002211444,2.34062021,2609.9,2609.7,1.636]
[1749002213350,2.70578223,2609.9,2609.8,1.636]
[1749002215420,4.61708223,2609.9,2609.8,1.636]
[1749002217257,0.55,2609.6,2609.3,1.636]
[1749002217460,1.2967,2609.5,2609.3,1.636]
[1749002217754,2.32062021,2609.4,2609.3,1.636]
[1749002217928,2.73735223,2609.4,2609.3,1.636]
[1749002225336,1.3873,2609.3,2608.8,8.269]
[1749002225544,1.3873,2609.3,2608.9,1.636]
[1749002228390,1.3368,2608.9,2608.8,8.269]
[1749002228585,2.32062021,2609.0,2608.8,9.905]
[1749002229596,1.3368,2609.3,2608.8,9.905]
[1749002230091,2.73735223,2609.4,2608.8,9.905]
[1749002231101,2.32062021,2609.6,2608.9,8.0]
[1749002231691,2.32062021,2609.8,2608.9,8.0]
[1749002231863,2.32062021,2609.8,2609.0,6.272]
[1749002233001,2.32062021,2609.6,2609.0,6.272]
[1749002235101,2.32062021,2609.4,2609.0,6.272]
[1749002239533,2.32062021,2609.6,2609.0,6.272]
[1749002241204,2.32062021,2609.8,2609.0,6.272]
[1749002241607,2.32062021,2609.8,2609.1,1.634]
[1749002243038,2.32062021,2609.6,2609.1,1.634]
[1749002251127,2.32062021,2609.6,2609.2,1.634]
[1749002252054,2.32062021,2609.8,2609.2,1.634]
[1749002252224,0.02,2609.9,2609.2,1.634]
[1749002253042,2.32062021,2609.8,2609.2,1.634]
[1749002254759,2.34062021,2609.9,2609.2,1.634]
[1749002255652,0.02,2609.9,2609.3,10.0]
[1749002256265,0.02,2609.9,2609.7,10.0]
[1749002256469,0.35811138,2610.4,2610.2,8.0]
[1749002256651,0.35811138,2610.4,2610.3,8.268]
[1749002256823,0.35811138,2610.4,2610.3,16.268]
[1749002257028,0.35811138,2610.4,2610.3,26.268]
[1749002258371,0.35811138,2610.4,2610.3,20.280758]
[1749002259669,0.35811138,2610.4,2610.3,20.67196567]
[1749002261131,0.35811138,2610.4,2610.3,18.74016567]
[1749002263736,0.35810293,2610.5,2610.4,10.0]
[1749002263949,0.35810293,2610.5,2610.4,11.631]
[1749002264525,0.02,2610.9,2610.5,21.83068377]
[1749002264816,0.02,2610.9,2610.8,8.0]
[1749002265090,0.02,2610.9,2610.8,22.195483]
[1749002265268,0.02,2610.9,2610.8,17.518483]
[1749002265774,0.02,2610.9,2610.8,18.48298222]
[1749002266179,0.02,2610.9,2610.8,17.46298222]
[1749002266364,0.02,2610.9,2610.8,0.96449922]
[1749002266567,0.02,2610.9,2610.8,9.631]
[1749002267091,0.02,2610.9,2610.8,8.0]
[1749002267291,0.02,2610.9,2610.8,9.631]
[1749002269907,0.02,2610.9,2610.8,13.075882]
[1749002271013,0.02,2610.9,2610.8,9.631]
[1749002273669,0.02,2610.9,2610.8,9.624038]
[1749002275031,0.02,2610.9,2610.8,7.993038]
[1749002275193,0.02,2610.9,2610.8,9.623038]
[1749002276082,0.02,2610.9,2610.8,1.63]
[1749002276576,0.02,2610.9,2610.8,4.167298]
[1749002276776,0.02,2610.9,2610.8,1.63]
[1749002277608,0.02,2610.9,2610.8,2.01947927]
[1749002277972,0.02,2610.9,2610.8,1.63]
[1749002283714,2.34062021,2610.9,2610.8,1.63]
[1749002283939,3.64982021,2610.9,2610.8,1.63]
[1749002284112,4.01480223,2610.9,2610.8,1.63]
[1749002285524,1.69418202,2610.9,2610.8,1.63]
[1749002286269,4.01480223,2610.9,2610.8,1.63]
[1749002287165,1.69418202,2610.9,2610.8,1.63]
[1749002293310,4.01480223,2610.9,2610.8,1.63]
[1749002293764,1.69418202,2610.9,2610.8,1.63]
[1749002293949,2.24418202,2610.9,2610.8,1.63]
[1749002294346,4.01480223,2610.9,2610.8,1.63]
[1749002295484,1.69418202,2610.9,2610.8,1.63]
[1749002297064,4.01480223,2610.9,2610.8,1.628]
[1749002297893,2.70560223,2610.9,2610.8,1.628]
[1749002298578,2.69737241,2610.9,2610.8,1.628]
[1749002313915,4.52047241,2610.9,2610.8,1.628]
[1749002314852,1.2247,2610.7,2610.2,8.264]
[1749002315055,1.2247,2610.7,2610.5,1.629]
[1749002316262,2.32062021,2610.6,2610.5,1.629]
[1749002316460,2.67515223,2610.6,2610.5,1.629]
[1749002318925,4.44315223,2610.6,2610.5,1.629]
[1749002319125,4.44315223,2610.6,2610.2,8.264]
[1749002319126,1.768,2610.5,2610.0,1.629]
[1749002319349,1.768,2610.2,2610.1,1.629]
[1749002319560,1.218,2610.2,2610.0,1.629]
[1749002320481,2.32062021,2610.1,2610.0,1.629]
[1749002320665,2.67448223,2610.1,2610.0,1.629]
[1749002323418,2.32062021,2610.1,2610.0,1.629]
[1749002327019,2.32062021,2610.3,2610.0,1.629]
[1749002327752,2.32062021,2610.5,2610.0,1.629]
[1749002334590,2.32062021,2610.3,2610.0,1.629]
[1749002338447,2.32062021,2610.5,2610.1,1.627]
[1749002341646,1.2624,2610.6,2610.1,1.627]
[1749002341850,3.54822021,2610.8,2610.1,1.627]
[1749002342017,0.01177018,2610.9,2610.1,1.627]
[1749002342520,2.32062021,2610.8,2610.1,1.627]
[1749002343539,2.32062021,2610.8,2610.1,2.01765129]
[1749002343866,3.56552021,2610.8,2610.1,2.01765129]
[1749002344172,2.32062021,2610.6,2610.1,2.01765129]
[1749002345042,2.32062021,2610.6,2610.2,8.265]
[1749002345868,2.32062021,2610.8,2610.2,8.265]
[1749002350182,2.32062021,2610.8,2610.3,1.627]
[1749002351276,2.32062021,2610.8,2610.4,1.625]
[1749002355480,0.01177018,2610.9,2610.4,1.625]
[1749002355696,0.01177018,2610.9,2610.5,12.32062021]
[1749002356004,0.01177018,2610.9,2610.7,10.0]
[1749002356188,0.01177018,2610.9,2610.6,6.422187]
[1749002356189,0.01177018,2610.9,2610.5,10.0]
[1749002356966,0.01177018,2610.9,2610.6,10.0]
[1749002357192,0.01177018,2610.9,2610.5,10.0]
[1749002357563,0.01177018,2610.9,2610.5,2.52637]
[1749002362631,0.01177018,2610.9,2610.5,2.63376]
[1749002366841,1.30957018,2610.9,2610.3,10.0]
[1749002367147,1.30957018,2610.9,2610.5,10.0]
[1749002368563,0.01177018,2610.9,2610.5,10.0]
[1749002370545,0.01177018,2610.9,2610.6,8.263]
[1749002370747,0.01177018,2610.9,2610.6,14.515]
[1749002371403,0.01177018,2610.9,2610.6,8.263]
[1749002371608,0.01177018,2610.9,2610.7,1.625]
[1749002371809,0.01177018,2610.9,2610.7,2.01253255]
[1749002372450,0.01177018,2610.9,2610.7,2.03253255]
[1749002373710,0.01177018,2610.9,2610.7,1.645]
[1749002374359,3.64702021,2610.8,2610.7,0.02]
[1749002374521,3.64702021,2610.8,2610.7,1.625]
[1749002374923,2.32062021,2610.8,2610.7,1.625]
[1749002375123,3.64702021,2610.8,2610.7,1.625]
[1749002376976,4.19702021,2610.8,2610.7,1.625]
[1749002377182,4.88585317,2610.8,2610.7,1.625]
[1749002378939,3.55945317,2610.8,2610.7,1.625]
[1749002379659,4.83225317,2610.8,2610.7,1.625]
[1749002383461,1.2349,2610.6,2609.5,8.264]
[1749002383661,2.32062021,2610.0,2609.6,15.875]
[1749002384167,3.55552021,2610.2,2609.6,15.875]
[1749002388953,3.61532021,2610.4,2609.6,15.875]
[1749002389181,1.2947,2610.4,2609.8,10.0]
[1749002389491,1.2947,2610.4,2609.7,6.785556]
[1749002389652,1.2947,2610.4,2609.8,10.0]
[1749002389865,1.2947,2610.4,2609.7,4.886556]
[1749002390191,1.2947,2610.4,2609.7,6.989656]
[1749002390369,3.61532021,2610.4,2609.8,10.0]
[1749002390571,3.61532021,2610.4,2609.7,7.027496]
[1749002390773,3.61532021,2610.4,2609.8,10.0]